[Event "Titled Tuesday Blitz May 30 Late 2023"]
[White "Fernandez Siles, Luis"]
[Black "Pinheiro, Iung Alicio de O."]
[WhiteFideId "2209420"]
[BlackFideId "2104350"]
[WhiteElo "2195"]
[BlackElo "2283"]
[Result "1/2-1/2"]
[Round "04"]
[TimeControl "180+2"]
[Date "2023.05.31"]
[WhiteClock "0:00:09"]
[BlackClock "0:00:06"]

1. d4 {[%clk 0:03:00]}  Nf6 {[%clk 0:02:34]} 2. c4 {[%clk 0:03:00]}  Nc6 {[%clk 0:02:33]} 3. Nf3 {[%clk 0:02:58]}  e6 {[%clk 0:02:33]} 4. Nc3 {[%clk 0:02:57]}  Bb4 {[%clk 0:02:30]} 5. Qc2 {[%clk 0:02:53]}  d6 {[%clk 0:02:19]} 6. a3 {[%clk 0:02:53]}  Bxc3+ {[%clk 0:02:17]} 7. Qxc3 {[%clk 0:02:54]}  Qe7 {[%clk 0:02:17]} 8. g3 {[%clk 0:02:29]}  a5 {[%clk 0:01:55]} 9. Bg2 {[%clk 0:02:27]}  e5 {[%clk 0:01:55]} 10. dxe5 {[%clk 0:02:17]}  dxe5 {[%clk 0:01:54]} 11. O-O {[%clk 0:02:11]}  h6 {[%clk 0:01:49]} 12. b3 {[%clk 0:02:04]}  O-O {[%clk 0:01:44]} 13. Bb2 {[%clk 0:02:04]}  Re8 {[%clk 0:01:44]} 14. Rfd1 {[%clk 0:01:53]}  Bf5 {[%clk 0:01:40]} 15. Nd2 {[%clk 0:01:50]}  Rad8 {[%clk 0:01:37]} 16. Nf1 {[%clk 0:01:50]}  Be4 {[%clk 0:01:35]} 17. Ne3 {[%clk 0:01:48]}  Nd4 {[%clk 0:01:30]} 18. Rd2 {[%clk 0:01:42]}  c6 {[%clk 0:01:03]} 19. Ng4 {[%clk 0:01:40]}  Bxg2 {[%clk 0:00:50]} 20. Nxf6+ {[%clk 0:01:40]}  Qxf6 {[%clk 0:00:50]} 21. Kxg2 {[%clk 0:01:41]}  Qf5 {[%clk 0:00:41]} 22. Rad1 {[%clk 0:01:25]}  Qe4+ {[%clk 0:00:34]} 23. f3 {[%clk 0:01:24]}  Qf5 {[%clk 0:00:33]} 24. Qd3 {[%clk 0:01:05]}  Qf6 {[%clk 0:00:30]} 25. Bxd4 {[%clk 0:01:02]}  exd4 {[%clk 0:00:30]} 26. e4 {[%clk 0:00:52]}  c5 {[%clk 0:00:27]} 27. f4 {[%clk 0:00:47]}  Re7 {[%clk 0:00:25]} 28. a4 {[%clk 0:00:47]}  Rde8 {[%clk 0:00:25]} 29. Re2 {[%clk 0:00:46]}  Qc6 {[%clk 0:00:26]} 30. Rde1 {[%clk 0:00:45]}  f5 {[%clk 0:00:26]} 31. Kf3 {[%clk 0:00:38]}  b6 {[%clk 0:00:21]} 32. Qc2 {[%clk 0:00:37]}  g5 {[%clk 0:00:21]} 33. fxg5 {[%clk 0:00:33]}  hxg5 {[%clk 0:00:21]} 34. g4 {[%clk 0:00:34]}  fxg4+ {[%clk 0:00:14]} 35. Kxg4 {[%clk 0:00:34]}  Qe6+ {[%clk 0:00:14]} 36. Kg3 {[%clk 0:00:32]}  Qe5+ {[%clk 0:00:14]} 37. Kg2 {[%clk 0:00:32]}  Rh7 {[%clk 0:00:14]} 38. h3 {[%clk 0:00:30]}  Rh4 {[%clk 0:00:14]} 39. Qd3 {[%clk 0:00:28]}  Rf8 {[%clk 0:00:14]} 40. Qg3 {[%clk 0:00:28]}  Rhf4 {[%clk 0:00:11]} 41. Rf1 {[%clk 0:00:25]}  Kg7 {[%clk 0:00:10]} 42. Rxf4 {[%clk 0:00:25]}  Rxf4 {[%clk 0:00:10]} 43. h4 {[%clk 0:00:25]}  Kg6 {[%clk 0:00:09]} 44. Qxg5+ {[%clk 0:00:25]}  Qxg5+ {[%clk 0:00:10]} 45. hxg5 {[%clk 0:00:25]}  Kxg5 {[%clk 0:00:11]} 46. e5 {[%clk 0:00:22]}  Rf8 {[%clk 0:00:09]} 47. e6 {[%clk 0:00:23]}  Re8 {[%clk 0:00:10]} 48. e7 {[%clk 0:00:24]}  Kf6 {[%clk 0:00:10]} 49. Kf3 {[%clk 0:00:09]}  Rxe7 {[%clk 0:00:10]} 50. Rh2 {[%clk 0:00:10]}  Re3+ {[%clk 0:00:10]} 51. Kf4 {[%clk 0:00:10]}  Rxb3 {[%clk 0:00:11]} 52. Rh6+ {[%clk 0:00:11]}  Kg7 {[%clk 0:00:12]} 53. Rd6 {[%clk 0:00:10]}  Kf7 {[%clk 0:00:11]} 54. Ke5 {[%clk 0:00:10]}  Rb4 {[%clk 0:00:12]} 55. Kd5 {[%clk 0:00:09]}  Ke7 {[%clk 0:00:11]} 56. Re6+ {[%clk 0:00:08]}  Kd7 {[%clk 0:00:11]} 57. Rh6 {[%clk 0:00:08]}  Kc7 {[%clk 0:00:11]} 58. Rh7+ {[%clk 0:00:08]}  Kb8 {[%clk 0:00:09]} 59. Kc6 {[%clk 0:00:09]}  Ka8 {[%clk 0:00:07]} 60. Rh8+ {[%clk 0:00:07]}  Ka7 {[%clk 0:00:07]} 61. Rh7+ {[%clk 0:00:08]}  Kb8 {[%clk 0:00:06]} 62. Rh8+ {[%clk 0:00:08]}  Ka7 {[%clk 0:00:07]} 63. Rh7+ {[%clk 0:00:09]}  Ka6 {[%clk 0:00:08]} 64. Rh8 {[%clk 0:00:09]}  Ka7 {[%clk 0:00:06]} 1/2-1/2


[Site "https://www.chess.com"]

[Event "Titled Tuesday Blitz May 30 Late 2023"]
[White "Do Nascimento,Christian Almeida"]
[Black "Torres Hernandez, Leslie Carolin"]
[WhiteFideId "2143801"]
[BlackFideId "8400504"]
[WhiteElo "2118"]
[BlackElo "1920"]
[Result "1-0"]
[Round "04"]
[TimeControl "180+2"]
[Date "2023.05.31"]
[WhiteClock "0:01:20"]
[BlackClock "0:00:02"]

1. c4 {[%clk 0:03:00]}  e5 {[%clk 0:02:58]} 2. g3 {[%clk 0:02:59]}  Nf6 {[%clk 0:02:57]} 3. Bg2 {[%clk 0:02:59]}  Nc6 {[%clk 0:02:56]} 4. d3 {[%clk 0:02:54]}  Bc5 {[%clk 0:02:54]} 5. Nf3 {[%clk 0:02:54]}  d6 {[%clk 0:02:54]} 6. O-O {[%clk 0:02:54]}  O-O {[%clk 0:02:54]} 7. Nc3 {[%clk 0:02:52]}  a6 {[%clk 0:02:53]} 8. a3 {[%clk 0:02:52]}  h6 {[%clk 0:02:48]} 9. b4 {[%clk 0:02:52]}  Bb6 {[%clk 0:02:48]} 10. Bb2 {[%clk 0:02:45]}  Be6 {[%clk 0:02:37]} 11. Nd2 {[%clk 0:02:33]}  Qd7 {[%clk 0:02:35]} 12. Nd5 {[%clk 0:02:24]}  Bxd5 {[%clk 0:02:35]} 13. cxd5 {[%clk 0:02:24]}  Ne7 {[%clk 0:02:36]} 14. Qb3 {[%clk 0:02:20]}  c6 {[%clk 0:02:20]} 15. dxc6 {[%clk 0:02:17]}  bxc6 {[%clk 0:02:20]} 16. Rac1 {[%clk 0:02:16]}  Rac8 {[%clk 0:02:19]} 17. Nc4 {[%clk 0:02:16]}  Bc7 {[%clk 0:02:18]} 18. Qa4 {[%clk 0:02:12]}  Ned5 {[%clk 0:01:05]} 19. Ne3 {[%clk 0:02:01]}  Nxe3 {[%clk 0:00:57]} 20. fxe3 {[%clk 0:02:00]}  Bb6 {[%clk 0:00:58]} 21. d4 {[%clk 0:01:49]}  exd4 {[%clk 0:00:47]} 22. Qxa6 {[%clk 0:01:40]}  Qa7 {[%clk 0:00:12]} 23. Qxa7 {[%clk 0:01:38]}  Bxa7 {[%clk 0:00:13]} 24. Bxd4 {[%clk 0:01:32]}  Bxd4 {[%clk 0:00:10]} 25. exd4 {[%clk 0:01:32]}  d5 {[%clk 0:00:08]} 26. Rc3 {[%clk 0:01:26]}  Rfe8 {[%clk 0:00:09]} 27. Bf3 {[%clk 0:01:25]}  g5 {[%clk 0:00:03]} 28. h3 {[%clk 0:01:23]}  h5 {[%clk 0:00:03]} 29. g4 {[%clk 0:01:23]}  hxg4 {[%clk 0:00:03]} 30. hxg4 {[%clk 0:01:24]}  Re6 {[%clk 0:00:02]} 31. Rfc1 {[%clk 0:01:24]}  Kg7 {[%clk 0:00:02]} 32. b5 {[%clk 0:01:22]}  c5 {[%clk 0:00:01]} 33. Rxc5 {[%clk 0:01:22]}  Rxc5 {[%clk 0:00:01]} 34. dxc5 {[%clk 0:01:21]}  Re3 {[%clk 0:00:02]} 35. c6 {[%clk 0:01:20]}  Ne8 {[%clk 0:00:02]} 36. c7 {[%clk 0:01:20]} 1-0


[Site "https://www.chess.com"]

[Event "Titled Tuesday Blitz May 30 Late 2023"]
[White "Kovacs, Klara"]
[Black "SergioMoralesG"]
[WhiteFideId "733210"]
[WhiteElo "2179"]
[BlackElo "2524"]
[Result "0-1"]
[Round "04"]
[TimeControl "180+2"]
[Date "2023.05.31"]
[WhiteClock "0:01:45"]
[BlackClock "0:01:55"]

1. Nf3 {[%clk 0:03:00]}  d5 {[%clk 0:02:59]} 2. g3 {[%clk 0:02:42]}  Bg4 {[%clk 0:02:58]} 3. Bg2 {[%clk 0:02:41]}  Nd7 {[%clk 0:02:59]} 4. d4 {[%clk 0:02:39]}  Ngf6 {[%clk 0:02:57]} 5. O-O {[%clk 0:02:39]}  e6 {[%clk 0:02:57]} 6. c3 {[%clk 0:02:28]}  h6 {[%clk 0:02:51]} 7. b4 {[%clk 0:02:28]}  a5 {[%clk 0:02:43]} 8. a3 {[%clk 0:02:27]}  axb4 {[%clk 0:02:41]} 9. cxb4 {[%clk 0:02:13]}  Bxb4 {[%clk 0:02:40]} 10. Ne5 {[%clk 0:02:14]}  Bd6 {[%clk 0:02:19]} 11. Bb2 {[%clk 0:02:12]}  Bf5 {[%clk 0:02:15]} 12. Nd2 {[%clk 0:02:00]}  O-O {[%clk 0:02:13]} 13. f3 {[%clk 0:01:58]}  c5 {[%clk 0:02:08]} 14. e3 {[%clk 0:01:47]}  cxd4 {[%clk 0:02:01]} 15. exd4 {[%clk 0:01:48]}  Qb6 {[%clk 0:01:59]} 16. Nb3 {[%clk 0:01:45]}  Nxe5 {[%clk 0:01:55]} 0-1


[Site "https://www.chess.com"]

[Event "Titled Tuesday Blitz May 30 Late 2023"]
[White "Minko, Dmitry"]
[Black "Arun, Siddharth"]
[WhiteFideId "24188468"]
[BlackFideId "2079178"]
[WhiteElo "2147"]
[BlackElo "2352"]
[Result "1-0"]
[Round "04"]
[TimeControl "180+2"]
[Date "2023.05.31"]
[WhiteClock "0:00:43"]
[BlackClock "0:01:07"]

1. e4 {[%clk 0:03:00]}  c6 {[%clk 0:02:59]} 2. d4 {[%clk 0:03:00]}  d5 {[%clk 0:03:00]} 3. exd5 {[%clk 0:03:01]}  cxd5 {[%clk 0:02:59]} 4. Bd3 {[%clk 0:03:01]}  Nc6 {[%clk 0:02:59]} 5. c3 {[%clk 0:03:02]}  Qc7 {[%clk 0:03:00]} 6. h3 {[%clk 0:03:02]}  g6 {[%clk 0:02:59]} 7. Nf3 {[%clk 0:03:01]}  Bf5 {[%clk 0:02:59]} 8. Be2 {[%clk 0:03:02]}  Nf6 {[%clk 0:02:58]} 9. O-O {[%clk 0:03:02]}  Bg7 {[%clk 0:02:58]} 10. Re1 {[%clk 0:03:02]}  O-O {[%clk 0:02:58]} 11. Bf1 {[%clk 0:02:55]}  Rae8 {[%clk 0:02:56]} 12. Nbd2 {[%clk 0:02:21]}  e5 {[%clk 0:02:48]} 13. dxe5 {[%clk 0:02:21]}  Nxe5 {[%clk 0:02:49]} 14. Nxe5 {[%clk 0:02:21]}  Rxe5 {[%clk 0:02:50]} 15. Rxe5 {[%clk 0:02:22]}  Qxe5 {[%clk 0:02:50]} 16. Nf3 {[%clk 0:02:23]}  Qc7 {[%clk 0:02:48]} 17. Be3 {[%clk 0:02:17]}  b6 {[%clk 0:02:44]} 18. Bd4 {[%clk 0:02:15]}  Be4 {[%clk 0:02:40]} 19. Ng5 {[%clk 0:02:03]}  Qf4 {[%clk 0:02:31]} 20. Nxe4 {[%clk 0:01:58]}  Nxe4 {[%clk 0:02:28]} 21. Be3 {[%clk 0:01:58]}  Qd6 {[%clk 0:02:14]} 22. Qa4 {[%clk 0:01:55]}  a5 {[%clk 0:02:05]} 23. Rd1 {[%clk 0:01:55]}  Qe6 {[%clk 0:01:54]} 24. Qb5 {[%clk 0:01:53]}  Nc5 {[%clk 0:01:29]} 25. Bxc5 {[%clk 0:01:47]}  bxc5 {[%clk 0:01:30]} 26. Qxc5 {[%clk 0:01:48]}  d4 {[%clk 0:01:29]} 27. Bc4 {[%clk 0:01:11]}  Rc8 {[%clk 0:01:27]} 28. Bxe6 {[%clk 0:01:03]}  Rxc5 {[%clk 0:01:27]} 29. cxd4 {[%clk 0:01:02]}  Rc2 {[%clk 0:01:27]} 30. Bb3 {[%clk 0:00:53]}  Rxb2 {[%clk 0:01:27]} 31. d5 {[%clk 0:00:54]}  Kf8 {[%clk 0:01:23]} 32. d6 {[%clk 0:00:50]}  Ke8 {[%clk 0:01:22]} 33. Ba4+ {[%clk 0:00:47]}  Kd8 {[%clk 0:01:22]} 34. Re1 {[%clk 0:00:47]}  Kc8 {[%clk 0:01:14]} 35. d7+ {[%clk 0:00:43]}  Kc7 {[%clk 0:01:07]} 36. Rc1+ {[%clk 0:00:43]} 1-0


[Site "https://www.chess.com"]

[Event "Titled Tuesday Blitz May 30 Late 2023"]
[White "Rose, Felix"]
[Black "Dragomirescu, Robin-Alexandru"]
[WhiteFideId "5105722"]
[BlackFideId "1213849"]
[WhiteElo "2039"]
[BlackElo "2356"]
[Result "0-1"]
[Round "04"]
[TimeControl "180+2"]
[Date "2023.05.31"]
[WhiteClock "0:00:25"]
[BlackClock "0:00:09"]

1. d4 {[%clk 0:03:00]}  Nc6 {[%clk 0:02:58]} 2. Nf3 {[%clk 0:02:59]}  d5 {[%clk 0:02:58]} 3. e3 {[%clk 0:02:58]}  Bg4 {[%clk 0:02:58]} 4. h3 {[%clk 0:02:56]}  Bxf3 {[%clk 0:02:57]} 5. Qxf3 {[%clk 0:02:56]}  e5 {[%clk 0:02:57]} 6. dxe5 {[%clk 0:02:55]}  Nxe5 {[%clk 0:02:57]} 7. Qg3 {[%clk 0:02:53]}  Ng6 {[%clk 0:02:56]} 8. Nc3 {[%clk 0:02:50]}  Nf6 {[%clk 0:02:56]} 9. Bd3 {[%clk 0:02:49]}  Bd6 {[%clk 0:02:56]} 10. Qf3 {[%clk 0:02:47]}  O-O {[%clk 0:02:55]} 11. Bd2 {[%clk 0:02:47]}  Ne5 {[%clk 0:02:52]} 12. Qe2 {[%clk 0:02:43]}  c5 {[%clk 0:02:47]} 13. b3 {[%clk 0:02:29]}  Re8 {[%clk 0:02:27]} 14. O-O {[%clk 0:02:09]}  Bb8 {[%clk 0:02:05]} 15. Bb5 {[%clk 0:02:08]}  Qd6 {[%clk 0:01:58]} 16. f4 {[%clk 0:01:57]}  Nc6 {[%clk 0:01:56]} 17. Qf3 {[%clk 0:01:53]}  a6 {[%clk 0:01:50]} 18. Bxc6 {[%clk 0:01:52]}  Qxc6 {[%clk 0:01:50]} 19. Rae1 {[%clk 0:01:48]}  Ne4 {[%clk 0:01:44]} 20. Nxe4 {[%clk 0:01:48]}  Rxe4 {[%clk 0:01:45]} 21. Bc3 {[%clk 0:01:44]}  Bc7 {[%clk 0:01:40]} 22. Qg3 {[%clk 0:01:44]}  f6 {[%clk 0:01:41]} 23. Rd1 {[%clk 0:01:39]}  Rae8 {[%clk 0:01:40]} 24. Rf3 {[%clk 0:01:39]}  b5 {[%clk 0:00:54]} 25. Bd2 {[%clk 0:01:26]}  Bb6 {[%clk 0:00:46]} 26. Kh2 {[%clk 0:01:25]}  c4 {[%clk 0:00:45]} 27. bxc4 {[%clk 0:01:25]}  Qxc4 {[%clk 0:00:38]} 28. c3 {[%clk 0:01:16]}  Qxa2 {[%clk 0:00:38]} 29. Rf2 {[%clk 0:01:02]}  Qc4 {[%clk 0:00:33]} 30. Ra1 {[%clk 0:00:44]}  Bxe3 {[%clk 0:00:31]} 31. Bxe3 {[%clk 0:00:45]}  Rxe3 {[%clk 0:00:32]} 32. Rf3 {[%clk 0:00:45]}  Qxc3 {[%clk 0:00:29]} 33. Rxa6 {[%clk 0:00:38]}  Rxf3 {[%clk 0:00:28]} 34. Qxf3 {[%clk 0:00:34]}  Qxf3 {[%clk 0:00:27]} 35. gxf3 {[%clk 0:00:35]}  Rb8 {[%clk 0:00:23]} 36. Rd6 {[%clk 0:00:36]}  b4 {[%clk 0:00:23]} 37. Rxd5 {[%clk 0:00:36]}  b3 {[%clk 0:00:24]} 38. Rd1 {[%clk 0:00:37]}  b2 {[%clk 0:00:24]} 39. Rb1 {[%clk 0:00:37]}  Kf7 {[%clk 0:00:24]} 40. f5 {[%clk 0:00:37]}  Ke7 {[%clk 0:00:19]} 41. Kg3 {[%clk 0:00:38]}  Kd6 {[%clk 0:00:19]} 42. Kf4 {[%clk 0:00:38]}  Kd5 {[%clk 0:00:19]} 43. h4 {[%clk 0:00:38]}  Kd4 {[%clk 0:00:19]} 44. h5 {[%clk 0:00:38]}  h6 {[%clk 0:00:17]} 45. Kg4 {[%clk 0:00:32]}  Kd3 {[%clk 0:00:17]} 46. Rd1+ {[%clk 0:00:24]}  Kc2 {[%clk 0:00:14]} 47. Rd7 {[%clk 0:00:24]}  b1=Q {[%clk 0:00:13]} 48. Rxg7 {[%clk 0:00:24]}  Qg1+ {[%clk 0:00:12]} 49. Kh4 {[%clk 0:00:24]}  Qxg7 {[%clk 0:00:12]} 50. f4 {[%clk 0:00:24]}  Rb4 {[%clk 0:00:10]} 51. Kh3 {[%clk 0:00:25]}  Rxf4 {[%clk 0:00:09]} 52. Kh2 {[%clk 0:00:25]}  Rh4# {[%clk 0:00:09]} 0-1


[Site "https://www.chess.com"]

[Event "Titled Tuesday Blitz May 30 Late 2023"]
[White "Hoffmann, Asa"]
[Black "Baches Garcia, Guillermo"]
[WhiteFideId "2001470"]
[BlackFideId "2209764"]
[WhiteElo "2117"]
[BlackElo "2508"]
[Result "0-1"]
[Round "04"]
[TimeControl "180+2"]
[Date "2023.05.31"]
[WhiteClock "0:00:56"]
[BlackClock "0:00:15"]

1. d4 {[%clk 0:02:57]}  d5 {[%clk 0:03:00]} 2. Bg5 {[%clk 0:02:55]}  f6 {[%clk 0:02:58]} 3. Bf4 {[%clk 0:02:55]}  Nc6 {[%clk 0:02:53]} 4. Nf3 {[%clk 0:02:54]}  Bg4 {[%clk 0:02:51]} 5. Nbd2 {[%clk 0:02:54]}  Qd7 {[%clk 0:02:49]} 6. c4 {[%clk 0:02:48]}  e6 {[%clk 0:02:47]} 7. Qb3 {[%clk 0:02:45]}  O-O-O {[%clk 0:02:42]} 8. e3 {[%clk 0:02:44]}  g5 {[%clk 0:02:35]} 9. Bg3 {[%clk 0:02:43]}  h5 {[%clk 0:02:32]} 10. h4 {[%clk 0:02:40]}  gxh4 {[%clk 0:02:30]} 11. Bxh4 {[%clk 0:02:38]}  Rh6 {[%clk 0:02:06]} 12. O-O-O {[%clk 0:02:36]}  Nge7 {[%clk 0:02:05]} 13. cxd5 {[%clk 0:02:26]}  exd5 {[%clk 0:02:04]} 14. Bg3 {[%clk 0:02:22]}  Nf5 {[%clk 0:01:55]} 15. Bf4 {[%clk 0:02:20]}  Rh8 {[%clk 0:01:55]} 16. Bd3 {[%clk 0:02:16]}  Bd6 {[%clk 0:01:35]} 17. Bxd6 {[%clk 0:02:14]}  Qxd6 {[%clk 0:01:32]} 18. a3 {[%clk 0:02:13]}  Kb8 {[%clk 0:01:25]} 19. Kb1 {[%clk 0:02:09]}  Nfe7 {[%clk 0:01:24]} 20. Rc1 {[%clk 0:02:07]}  Rc8 {[%clk 0:01:21]} 21. Nh4 {[%clk 0:01:59]}  Be6 {[%clk 0:01:17]} 22. f4 {[%clk 0:01:52]}  Bf7 {[%clk 0:01:16]} 23. Ndf3 {[%clk 0:01:46]}  Rce8 {[%clk 0:01:13]} 24. Bb5 {[%clk 0:01:43]}  Ka8 {[%clk 0:01:10]} 25. Rc3 {[%clk 0:01:42]}  Be6 {[%clk 0:01:07]} 26. Rhc1 {[%clk 0:01:41]}  Bd7 {[%clk 0:01:08]} 27. Nd2 {[%clk 0:01:37]}  a6 {[%clk 0:01:04]} 28. Qa4 {[%clk 0:01:36]}  Ka7 {[%clk 0:01:00]} 29. Nb3 {[%clk 0:01:36]}  Nc8 {[%clk 0:00:40]} 30. Nc5 {[%clk 0:01:31]}  Nb6 {[%clk 0:00:38]} 31. Qb3 {[%clk 0:01:25]}  axb5 {[%clk 0:00:37]} 32. Qxb5 {[%clk 0:01:22]}  Kb8 {[%clk 0:00:36]} 33. a4 {[%clk 0:01:18]}  Na7 {[%clk 0:00:27]} 34. Qb4 {[%clk 0:01:16]}  Bc8 {[%clk 0:00:24]} 35. a5 {[%clk 0:01:15]}  Nc4 {[%clk 0:00:24]} 36. a6 {[%clk 0:01:06]}  b6 {[%clk 0:00:22]} 37. e4 {[%clk 0:01:03]}  Nd2+ {[%clk 0:00:19]} 38. Ka1 {[%clk 0:01:02]}  Nxe4 {[%clk 0:00:19]} 39. Ng6 {[%clk 0:00:58]}  Rhg8 {[%clk 0:00:18]} 40. f5 {[%clk 0:00:58]}  Ka8 {[%clk 0:00:17]} 41. Na4 {[%clk 0:00:57]}  Qxb4 {[%clk 0:00:17]} 42. Ra3 {[%clk 0:00:56]}  Nb5 {[%clk 0:00:15]} 0-1


[Site "https://www.chess.com"]

[Event "Titled Tuesday Blitz May 30 Late 2023"]
[White "Ljukin, Sergei"]
[Black "Chyngyz, Sultai"]
[WhiteFideId "14102200"]
[BlackFideId "13803158"]
[WhiteElo "2312"]
[BlackElo "1408"]
[Result "1-0"]
[Round "04"]
[TimeControl "180+2"]
[Date "2023.05.31"]
[WhiteClock "0:01:52"]
[BlackClock "0:02:07"]

1. e4 {[%clk 0:02:55]}  c5 {[%clk 0:02:56]} 2. Nf3 {[%clk 0:02:54]}  d6 {[%clk 0:02:56]} 3. d4 {[%clk 0:02:54]}  cxd4 {[%clk 0:02:57]} 4. Nxd4 {[%clk 0:02:54]}  Nf6 {[%clk 0:02:57]} 5. Nc3 {[%clk 0:02:55]}  a6 {[%clk 0:02:58]} 6. Bg5 {[%clk 0:02:54]}  Nbd7 {[%clk 0:02:56]} 7. f4 {[%clk 0:02:54]}  Qc7 {[%clk 0:02:55]} 8. Qf3 {[%clk 0:02:52]}  e6 {[%clk 0:02:54]} 9. O-O-O {[%clk 0:02:50]}  Be7 {[%clk 0:02:53]} 10. g4 {[%clk 0:02:49]}  b5 {[%clk 0:02:53]} 11. Bxf6 {[%clk 0:02:49]}  Bxf6 {[%clk 0:02:53]} 12. Bxb5 {[%clk 0:02:40]}  axb5 {[%clk 0:02:43]} 13. Ndxb5 {[%clk 0:02:40]}  Qa5 {[%clk 0:02:42]} 14. Nxd6+ {[%clk 0:02:39]}  Kf8 {[%clk 0:02:42]} 15. e5 {[%clk 0:02:39]}  Bxe5 {[%clk 0:02:22]} 16. fxe5 {[%clk 0:02:37]}  Nxe5 {[%clk 0:02:23]} 17. Qf4 {[%clk 0:02:08]}  Bd7 {[%clk 0:02:07]} 18. Nxf7 {[%clk 0:01:52]} 1-0


[Site "https://www.chess.com"]

[Event "Titled Tuesday Blitz May 30 Late 2023"]
[White "Balla, Tamas-Kristof"]
[Black "Dragomirescu, Calin"]
[WhiteFideId "1208497"]
[BlackFideId "1200895"]
[WhiteElo "2334"]
[BlackElo "2010"]
[Result "0-1"]
[Round "04"]
[TimeControl "180+2"]
[Date "2023.05.31"]
[WhiteClock "0:00:08"]
[BlackClock "0:00:10"]

1. e4 {[%clk 0:02:58]}  g6 {[%clk 0:02:59]} 2. d4 {[%clk 0:02:58]}  Bg7 {[%clk 0:02:59]} 3. Nc3 {[%clk 0:02:58]}  d6 {[%clk 0:03:00]} 4. f4 {[%clk 0:02:58]}  Nf6 {[%clk 0:02:59]} 5. Nf3 {[%clk 0:02:58]}  O-O {[%clk 0:02:59]} 6. Bd3 {[%clk 0:02:56]}  Na6 {[%clk 0:02:57]} 7. e5 {[%clk 0:02:56]}  Nd7 {[%clk 0:02:56]} 8. O-O {[%clk 0:02:51]}  c5 {[%clk 0:02:56]} 9. Bxa6 {[%clk 0:02:21]}  cxd4 {[%clk 0:02:53]} 10. Qxd4 {[%clk 0:02:01]}  bxa6 {[%clk 0:02:50]} 11. Be3 {[%clk 0:01:48]}  dxe5 {[%clk 0:02:46]} 12. fxe5 {[%clk 0:01:47]}  Nb6 {[%clk 0:02:35]} 13. Qe4 {[%clk 0:01:41]}  Rb8 {[%clk 0:02:29]} 14. Rad1 {[%clk 0:01:40]}  Qc7 {[%clk 0:02:26]} 15. Bf4 {[%clk 0:01:37]}  Bb7 {[%clk 0:02:21]} 16. Qe2 {[%clk 0:01:23]}  e6 {[%clk 0:02:18]} 17. Ng5 {[%clk 0:01:13]}  Nd5 {[%clk 0:02:13]} 18. Nxd5 {[%clk 0:01:10]}  Bxd5 {[%clk 0:02:12]} 19. c3 {[%clk 0:01:06]}  Qb7 {[%clk 0:02:05]} 20. b3 {[%clk 0:00:56]}  h6 {[%clk 0:02:01]} 21. Nf3 {[%clk 0:00:49]}  Bxf3 {[%clk 0:01:57]} 22. Rxf3 {[%clk 0:00:48]}  Rfd8 {[%clk 0:01:52]} 23. Rdf1 {[%clk 0:00:47]}  Rd7 {[%clk 0:01:45]} 24. Rh3 {[%clk 0:00:44]}  h5 {[%clk 0:01:30]} 25. Bg5 {[%clk 0:00:44]}  Qc7 {[%clk 0:01:18]} 26. Bf6 {[%clk 0:00:43]}  Bxf6 {[%clk 0:01:14]} 27. exf6 {[%clk 0:00:42]}  Rc8 {[%clk 0:01:07]} 28. Qxa6 {[%clk 0:00:37]}  Rd2 {[%clk 0:00:59]} 29. Rg3 {[%clk 0:00:30]}  Rcd8 {[%clk 0:00:56]} 30. Qb5 {[%clk 0:00:25]}  R2d5 {[%clk 0:00:48]} 31. Qa4 {[%clk 0:00:23]}  Qd7 {[%clk 0:00:41]} 32. Qf4 {[%clk 0:00:21]}  Qd6 {[%clk 0:00:38]} 33. Qh6 {[%clk 0:00:20]}  Qf8 {[%clk 0:00:38]} 34. Qf4 {[%clk 0:00:14]}  Kh7 {[%clk 0:00:36]} 35. Rg5 {[%clk 0:00:14]}  Rxg5 {[%clk 0:00:32]} 36. Qxg5 {[%clk 0:00:15]}  Qh6 {[%clk 0:00:32]} 37. Qg3 {[%clk 0:00:14]}  Rd2 {[%clk 0:00:29]} 38. Qc7 {[%clk 0:00:13]}  Qf8 {[%clk 0:00:26]} 39. c4 {[%clk 0:00:12]}  Kh6 {[%clk 0:00:22]} 40. Qxa7 {[%clk 0:00:11]}  Qd6 {[%clk 0:00:18]} 41. Qe3+ {[%clk 0:00:12]}  Kh7 {[%clk 0:00:16]} 42. a4 {[%clk 0:00:11]}  Rb2 {[%clk 0:00:15]} 43. a5 {[%clk 0:00:09]}  Qc6 {[%clk 0:00:11]} 44. Qa7 {[%clk 0:00:08]}  Qxg2# {[%clk 0:00:10]} 0-1


[Site "https://www.chess.com"]